{"text_format":"1","workbook":"xlsx","n_sheets":2,"sheets":["Formato selección múltiple (3)","Hoja2"],"not_rendered":{"charts":0,"images":1,"macros":1,"external_links":1,"defined_names":13,"comments":1,"pivot_tables":0},"unopened":[],"bounds":{"document_bytes":16777216,"sheet_cells":100000,"rows_first":2000,"rows_last":500,"rows_between":2000,"halvings":0,"cell_chars":16384,"cell_head_chars":4096},"cells_cut":0,"cells_raw":0,"read":"whole","date_system":"1900"}

{"sheet":"Formato selección múltiple (3)","index":0,"n_rows":29,"n_cols":33,"rows_kept":29,"cut":false,"hidden":false,"merged":[[15,25,15,28],[15,29,15,31],[15,32,15,35],[28,0,28,20],[29,0,29,13],[19,0,19,20],[18,0,18,20],[20,0,20,20],[17,0,17,20],[17,22,27,35],[21,0,21,20],[22,0,27,20],[15,0,15,15],[15,16,15,24],[13,0,13,15],[13,16,13,24],[13,25,13,28],[13,29,13,31],[13,32,13,35],[14,0,14,15],[14,16,14,24],[14,25,14,28],[14,29,14,31],[14,32,14,35],[11,32,11,35],[12,0,12,15],[12,16,12,24],[12,25,12,28],[12,29,12,31],[12,32,12,35],[10,0,11,15],[10,16,11,24],[10,25,10,35],[11,25,11,28],[11,29,11,31],[7,0,7,4],[7,5,7,28],[7,30,7,35],[8,0,8,7],[8,8,8,28],[5,0,5,1],[5,2,5,28],[6,0,6,3],[6,4,6,21],[6,22,6,23],[6,24,6,28],[4,0,4,1],[4,2,4,24],[4,26,4,28],[4,30,4,35],[0,0,2,6],[0,7,2,28],[0,29,0,35],[1,29,1,35],[2,29,2,35]]}
[null,null,null,null,null,null,null,"REMISIÓN DE MUESTRAS",null,null,null,null,null,null,null,null,null,null,null,null,null,null,null,null,null,null,null,null,null,"FOR-PDA-004"]
[null,null,null,null,null,null,null,null,null,null,null,null,null,null,null,null,null,null,null,null,null,null,null,null,null,null,null,null,null,"Versión 14"]
[null,null,null,null,null,null,null,null,null,null,null,null,null,null,null,null,null,null,null,null,null,null,null,null,null,null,null,null,null,"Aprobado 2024-02-01"]
[]
["Empresa:",null,null,null,null,null,null,null,null,null,null,null,null,null,null,null,null,null,null,null,null,null,null,null,null,"NIT:",null,null,null,null,"Fecha recepción de la muestra:"]
["Dirección: "]
["Persona de contacto:",null,null,null,null,null,null,null,null,null,null,null,null,null,null,null,null,null,null,null,null,null,"Teléfono:"]
["Correo persona de contacto:",null,null,null,null,null,null,null,null,null,null,null,null,null,null,null,null,null,null,null,null,null,null,null,null,null,null,null,null,null,"Consecutivo Micotox:"]
["Correos adicionales para envío de resultados: "]
[]
["IDENTIFICACIÓN O NOMBRE DE LA MUESTRA \n(Escriba el nombre de la muestra como requiera que aparezca en el reporte de resultados)",null,null,null,null,null,null,null,null,null,null,null,null,null,null,null,"ANALISIS SOLICITADOS  \n(Seleccione o escriba las abreviaturas de los análisis que solicita)",null,null,null,null,null,null,null,null,"ESPACIO MICOTOX"]
[null,null,null,null,null,null,null,null,null,null,null,null,null,null,null,null,null,null,null,null,null,null,null,null,null,"ID MICOTOX",null,null,null,"PESO (g)",null,null,"TEMPERATURA RECEPCIÓN (°C)\n(muestras refrigeradas)"]
[]
[]
[]
[]
[]
["REQUISITOS ADICIONALES:",null,null,null,null,null,null,null,null,null,null,null,null,null,null,null,null,null,null,null,null,null,"Abreviaturas de nuestros servicios:\nAF: Aflatoxinas B1, B2, G1 y G2. AFM1: Aflatoxina M1. AFM2: Aflatoxina M1 y M2. DAS-NEO: Diacetoxiscirpenol, neosolaniol. DON: Deoxinivalenol. FUM2: Fumonisinas B1 y B2. FUM3: Fumonisinas B1, B2 y B3. OTA: Ocratoxina A. PAT: Patulina. T2-HT2: T-2 toxina, HT-2 toxina. ZEA: Zearelenona. \nAA: Acrilamida. CAF: Cafeína. MEL: Melamina     \nMON:  Monensina. SAL: Salinomicina. NAR: Narasina   \n\nEl envío de este formato diligenciado junto con la muestra, implica la aceptación de las condiciones comerciales descritas en la cotización correspondiente. La información registrada en este formato será tratada de acuerdo a la ley 1581 de 2012 (política de tratamiento de datos personales). "]
[]
["*Tenga en cuenta que la solicitud de cromatogramas puede aumentar hasta 2 días el tiempo de entrega de los resultados."]
[]
["OTROS REQUISITOS / OBSERVACIONES:"]
[]
[]
[]
[]
[]
[]
["Firma y sello de responsabilidad por parte del cliente"]

{"sheet":"Hoja2","index":1,"n_rows":23,"n_cols":3,"rows_kept":23,"cut":false,"hidden":true,"merged":[]}
["Análisis disponibles","Análisis disponibles"]
["AF","Aflatoxinas B1, B2, G1 y G2",{"$f":"CONCATENATE(Tabla1[[#This Row],[Análisis disponibles]],\": \",B2)","v":"AF: Aflatoxinas B1, B2, G1 y G2"}]
["AFL 24h","Aflatoxinas B1, B2, G1 y G2  24h",{"$f":"CONCATENATE(Tabla1[[#This Row],[Análisis disponibles]],\": \",B3)","v":"AFL 24h: Aflatoxinas B1, B2, G1 y G2  24h"}]
["AFM1","Aflatoxina M1",{"$f":"CONCATENATE(Tabla1[[#This Row],[Análisis disponibles]],\": \",B4)","v":"AFM1: Aflatoxina M1"}]
["AFM2","Aflatoxina M1 y Aflatoxina M2 ",{"$f":"CONCATENATE(Tabla1[[#This Row],[Análisis disponibles]],\": \",B5)","v":"AFM2: Aflatoxina M1 y Aflatoxina M2 "}]
["DAS-NEO","Diacetoxiscirpenol, neosolaniol",{"$f":"CONCATENATE(Tabla1[[#This Row],[Análisis disponibles]],\": \",B6)","v":"DAS-NEO: Diacetoxiscirpenol, neosolaniol"}]
["DON","Deoxinivalenol",{"$f":"CONCATENATE(Tabla1[[#This Row],[Análisis disponibles]],\": \",B7)","v":"DON: Deoxinivalenol"}]
["DON 24h","Deoxinivalenol",{"$f":"CONCATENATE(Tabla1[[#This Row],[Análisis disponibles]],\": \",B8)","v":"DON 24h: Deoxinivalenol"}]
["FUM2","Fumonisnas B1 y B2",{"$f":"CONCATENATE(Tabla1[[#This Row],[Análisis disponibles]],\": \",B9)","v":"FUM2: Fumonisnas B1 y B2"}]
["FUM2 24h","Fumonisnas B1 y B2 24h",{"$f":"CONCATENATE(Tabla1[[#This Row],[Análisis disponibles]],\": \",B10)","v":"FUM2 24h: Fumonisnas B1 y B2 24h"}]
["FUM3","Fumonisinas B1, B2 y B3",{"$f":"CONCATENATE(Tabla1[[#This Row],[Análisis disponibles]],\": \",B11)","v":"FUM3: Fumonisinas B1, B2 y B3"}]
["FUM3 24h","Fumonisinas B1, B2 y B3 24h",{"$f":"CONCATENATE(Tabla1[[#This Row],[Análisis disponibles]],\": \",B12)","v":"FUM3 24h: Fumonisinas B1, B2 y B3 24h"}]
["OTA","Ocratoxina A",{"$f":"CONCATENATE(Tabla1[[#This Row],[Análisis disponibles]],\": \",B13)","v":"OTA: Ocratoxina A"}]
["PAT","Patulina",{"$f":"CONCATENATE(Tabla1[[#This Row],[Análisis disponibles]],\": \",B14)","v":"PAT: Patulina"}]
["T2-HT2","T-2 toxina, HT-2 toxina",{"$f":"CONCATENATE(Tabla1[[#This Row],[Análisis disponibles]],\": \",B15)","v":"T2-HT2: T-2 toxina, HT-2 toxina"}]
["ZEA","Zearelenona",{"$f":"CONCATENATE(Tabla1[[#This Row],[Análisis disponibles]],\": \",B16)","v":"ZEA: Zearelenona"}]
["ZEA 24h","Zearelenona 24h",{"$f":"CONCATENATE(Tabla1[[#This Row],[Análisis disponibles]],\": \",B17)","v":"ZEA 24h: Zearelenona 24h"}]
["AA","Acrilamida",{"$f":"CONCATENATE(Tabla1[[#This Row],[Análisis disponibles]],\": \",B18)","v":"AA: Acrilamida"}]
["CAF","Cafeína",{"$f":"CONCATENATE(Tabla1[[#This Row],[Análisis disponibles]],\": \",B19)","v":"CAF: Cafeína"}]
["MEL","Melamina",{"$f":"CONCATENATE(Tabla1[[#This Row],[Análisis disponibles]],\": \",B20)","v":"MEL: Melamina"}]
["MON","Monensina",{"$f":"CONCATENATE(Tabla1[[#This Row],[Análisis disponibles]],\": \",B21)","v":"MON: Monensina"}]
["SAL","Salinomicina",{"$f":"CONCATENATE(Tabla1[[#This Row],[Análisis disponibles]],\": \",B22)","v":"SAL: Salinomicina"}]
["NAR","Narasina",{"$f":"CONCATENATE(Tabla1[[#This Row],[Análisis disponibles]],\": \",B23)","v":"NAR: Narasina"}]